bitfinex-derivatives/quotes_ETHF0:USTF0_20250210
["timestamp","ask_amount","ask_price","bid_price","bid_amount"]
[1739149854234,0.00569368,2630.3,2629.9,2.77441009]
[1739149854737,3.96018168,2630.2,2630.1,3.2078]
[1739149854932,0.00569368,2630.3,2630.1,3.2078]
[1739149855937,1.1e-05,2630.3,2630.2,2.77441009]
[1739149856433,3.7888,2631.7,2630.4,0.76021]
[1739149856736,4.01119199,2631.6,2631.4,40.8]
[1739149857235,3.7888,2631.7,2631.4,40.8]
[1739149857530,4.27321643,2631.6,2631.4,40.8]
[1739149858332,4.27321643,2631.6,2631.3,0.00569368]
[1739149859033,4.27321643,2631.6,2631.4,40.8]
[1739149859535,4.27321643,2631.6,2631.3,0.00569368]
[1739149859928,4.27321643,2631.6,2631.4,40.8]
[1739149860439,4.27321643,2631.6,2631.3,0.00569368]
[1739149860641,0.00569368,2631.8,2631.4,2.77441009]
[1739149860932,0.00569368,2631.8,2631.4,5.98221009]
[1739149861740,0.00569368,2631.8,2631.7,2.77441009]
[1739149862335,0.00569368,2631.8,2631.7,5.98221009]
[1739149862735,0.00569368,2631.8,2631.7,6.58621009]
[1739149863032,3.2078,2632.6,2631.7,12.58621009]
[1739149863234,3.2078,2632.6,2632.2,2.77441009]
[1739149863428,4.09257296,2632.5,2632.2,2.77441009]
[1739149863734,0.5749,2632.9,2632.2,2.77441009]
[1739149864244,4.02168831,2632.8,2632.2,2.77441009]
[1739149864439,4.02738199,2632.8,2632.2,2.77441009]
[1739149865038,0.00569368,2632.8,2632.5,2.77441009]
[1739149866347,0.00569368,2632.8,2632.3,3.7615]
[1739149866642,0.00569368,2632.8,2632.5,2.77441009]
[1739149868743,0.00569368,2632.8,2632.2,4.56841009]
[1739149868932,0.00569368,2632.8,2632.5,2.77441009]
[1739149869135,0.00569368,2632.8,2632.6,40.8]
[1739149869935,0.00569368,2632.8,2632.7,3.2078]
[1739149870542,0.00569368,2632.8,2632.6,40.8]
[1739149871243,0.00569368,2632.8,2632.7,3.2078]
[1739149871439,3.2078,2633.6,2632.7,3.801]
[1739149871744,4.23673845,2633.5,2633.2,2.77441009]
[1739149872141,4.3739,2633.9,2633.2,2.77441009]
[1739149872545,4.03019619,2633.8,2633.3,0.00569368]
[1739149872949,0.00569368,2633.8,2633.3,3.21349368]
[1739149873153,0.00569368,2633.8,2633.3,0.00569368]
[1739149873342,3.2078,2633.6,2633.3,0.00569368]
[1739149873945,4.08078568,2633.5,2633.3,0.00569368]
[1739149874350,3.2078,2633.6,2633.3,0.00569368]
[1739149875350,0.75936,2633.4,2633.3,0.00569368]
[1739149875647,0.5696,2633.5,2633.3,0.00569368]
[1739149875853,4.16876697,2633.4,2633.3,0.00569368]
[1739149876549,5.41327696,2633.5,2633.3,0.00569368]
[1739149876747,4.65394696,2633.5,2633.3,0.00569368]
[1739149876950,0.5696,2633.5,2633.3,0.00569368]
[1739149877149,4.03721488,2633.4,2633.3,0.00569368]
[1739149877648,4.79657488,2633.4,2633.3,0.00569368]
[1739149877850,0.75946,2633.1,2632.7,0.00252424]
[1739149878045,3.2078,2632.8,2632.7,0.00252424]
[1739149878550,7.30225706,2632.8,2632.7,0.00252424]
[1739149880751,3.2078,2633.1,2632.7,0.00252424]
[1739149881254,7.28981348,2633.1,2632.7,0.00252424]
[1739149881443,4.08201348,2633.1,2632.7,0.00252424]
[1739149881643,3.81,2633.4,2632.9,2.77441009]
[1739149881848,0.6022,2633.4,2632.9,2.77441009]
[1739149882248,0.6022,2633.4,2633.0,40.8]
[1739149882448,3.81,2633.4,2632.8,3.2078]
[1739149882652,4.4022,2633.4,2632.7,0.00252424]
[1739149882952,4.4022,2633.4,2632.8,40.8]
[1739149883656,3.81,2633.4,2632.9,2.77441009]
[1739149883951,3.21349368,2633.8,2632.9,2.77441009]
[1739149884156,0.5523,2633.7,2632.9,6.58461009]
[1739149884456,4.90671343,2633.7,2632.9,6.58461009]
[1739149884754,0.5523,2633.7,2633.2,5.98221009]
[1739149884951,0.00569368,2633.8,2633.2,5.98221009]
[1739149885747,0.00569368,2633.8,2633.5,2.77441009]
[1739149885946,0.00569368,2633.8,2633.5,5.98221009]
[1739149886855,3.21349368,2633.8,2633.2,2.77441009]
[1739149887053,3.97314129,2633.7,2633.2,2.77441009]
[1739149887251,0.601,2633.6,2633.2,2.77441009]
[1739149887658,0.601,2633.6,2632.9,3.37681009]
[1739149887853,0.601,2633.6,2632.9,6.58461009]
[1739149888151,7.27944261,2633.5,2632.9,3.37681009]
[1739149888357,8.03877261,2633.5,2632.7,1.79652424]
[1739149888553,0.75953,2632.8,2632.7,0.00252424]
[1739149888746,3.2078,2632.9,2632.7,0.00252424]
[1739149888953,4.63913654,2632.8,2632.7,0.00252424]
[1739149889355,5.22603654,2632.8,2632.5,0.00569368]
[1739149889557,3.2078,2632.6,2632.5,0.00569368]
[1739149889952,4.2918066,2632.6,2632.5,9.53971377]
[1739149890153,3.2078,2633.5,2632.5,8.78010377]
[1739149890457,3.2078,2633.2,2632.5,5.98790377]
[1739149890646,4.23162492,2633.4,2632.6,40.8]
[1739149890847,3.88934205,2633.1,2632.6,40.8]
[1739149891359,3.2078,2633.2,2632.5,3.21349368]
[1739149891558,4.23657262,2633.0,2632.5,0.00569368]
[1739149891752,4.23657262,2633.1,2632.5,43.58010377]
[1739149891951,3.2078,2633.2,2632.5,43.58010377]
[1739149892258,3.96545991,2633.1,2632.5,2.78010377]
[1739149892447,3.2078,2632.9,2632.5,2.78010377]
[1739149894058,3.7766,2633.0,2632.5,2.78010377]
[1739149894456,4.05840763,2632.9,2632.5,2.78010377]
[1739149895355,3.2078,2633.4,2632.8,2.77441009]
[1739149895548,0.5774,2633.3,2632.8,2.77441009]
[1739149895751,4.38557309,2633.2,2632.5,5.98790377]
[1739149895960,3.2078,2633.1,2632.5,2.78010377]
[1739149896254,3.2078,2632.6,2632.5,0.00569368]
[1739149896659,3.2078,2632.3,2631.6,40.8]
[1739149896953,10.33923443,2632.6,2630.4,3.2078]
[1739149896954,5.98221009,2631.7,2630.4,3.2078]
[1739149897159,2.383,2632.2,2630.6,2.77441009]
[1739149897160,3.2078,2631.2,2630.6,2.77441009]
[1739149897361,3.2078,2631.5,2630.9,2.77441009]
[1739149897546,3.2078,2631.9,2630.9,2.77441009]
[1739149897751,0.00569368,2631.5,2630.9,2.78010377]
[1739149897956,0.00569368,2631.5,2630.9,5.98790377]
[1739149898455,0.00569368,2631.5,2631.2,2.77441009]
[1739149901463,0.00569368,2631.5,2631.2,5.98221009]
[1739149901965,0.00569368,2631.5,2631.3,1.1442]
[1739149902763,0.00569368,2631.5,2631.4,40.8]
[1739149902961,0.00569368,2631.5,2631.4,42.643]
[1739149903359,3.2078,2632.3,2631.4,42.643]
[1739149903663,3.95699517,2632.2,2631.4,42.643]
[1739149904367,0.00569368,2632.1,2631.5,2.77441009]
[1739149908361,0.00569368,2632.1,2631.3,4.352]
[1739149908362,3.9676,2631.9,2631.3,0.5746]
[1739149908572,0.61,2631.8,2631.3,0.5746]
[1739149908773,4.99499126,2631.8,2631.3,0.5746]
[1739149909671,0.75986,2631.7,2631.1,3.2078]
[1739149909870,5.75482126,2631.8,2631.1,3.2078]
[1739149910067,7.16760561,2631.6,2631.1,3.2078]
[1739149910668,3.2078,2631.6,2631.1,3.2078]
[1739149910968,3.2078,2631.3,2630.9,0.00569368]
[1739149914470,4.26237429,2631.2,2630.9,0.00569368]
[1739149914976,3.2078,2631.3,2630.9,0.00569368]
[1739149916178,1.36983,2631.8,2630.9,2.78010377]
[1739149916179,3.2078,2631.7,2630.9,2.78010377]
[1739149916477,7.47725994,2631.7,2630.9,2.78010377]
[1739149916876,4.26945994,2631.7,2630.9,2.78010377]
[1739149917072,4.26945994,2631.7,2631.0,0.5603]
[1739149917778,4.26945994,2631.7,2631.1,3.2078]
[1739149918574,0.61,2631.8,2631.2,2.77441009]
[1739149918780,0.61,2631.8,2631.3,0.562]
[1739149918971,0.61,2631.8,2631.5,2.77441009]
[1739149919574,3.2078,2632.0,2631.5,2.77441009]
[1739149921578,3.2078,2632.0,2631.6,3.2078]
[1739149921785,3.2078,2632.0,2631.8,2.77441009]
[1739149923382,3.2078,2632.0,2631.6,3.2078]
[1739149923383,3.2078,2632.0,2631.9,40.8]
[1739149923687,3.2078,2632.0,2631.6,3.2078]
[1739149923688,4.09989418,2631.9,2630.9,2.78010377]
[1739149923878,3.2078,2631.7,2630.9,2.78010377]
[1739149924382,3.2078,2631.7,2631.0,3.2078]
[1739149924687,3.2078,2631.7,2631.0,0.5839]
[1739149925083,3.2078,2631.7,2631.0,3.7917]
[1739149925281,1.1681,2631.9,2631.3,2.77441009]
[1739149925584,4.27037111,2631.8,2631.3,2.77441009]
[1739149925986,1.1681,2631.9,2631.3,2.77441009]
[1739149926384,1.9279,2631.9,2631.2,3.2078]
[1739149926579,0.5856,2631.9,2631.3,2.77441009]
[1739149927586,0.5856,2631.9,2631.3,5.98221009]
[1739149927791,0.5856,2631.9,2630.9,0.00569368]
[1739149927792,3.2078,2631.5,2630.9,0.00569368]
[1739149927979,3.2078,2631.0,2630.2,0.07603984]
[1739149928179,3.2078,2630.6,2630.2,0.07603984]
[1739149928585,4.35963214,2630.5,2630.2,0.07603984]
[1739149930284,3.21349368,2630.6,2630.2,0.07603984]
[1739149930886,0.00569368,2630.6,2630.2,0.07603984]
[1739149932190,4.07692242,2630.5,2630.2,0.07603984]
[1739149932385,3.2078,2630.3,2630.1,0.00569368]
[1739149933189,3.21349368,2630.6,2630.1,0.00569368]
[1739149933793,4.31927455,2630.5,2630.1,0.00569368]
[1739149934488,3.21349368,2630.6,2630.1,0.00569368]
[1739149934688,3.21349368,2630.6,2630.1,2.78010377]
[1739149934689,0.00569368,2630.6,2630.1,2.78010377]
[1739149934885,0.00569368,2630.6,2630.2,0.599]
[1739149935987,0.00569368,2630.6,2630.1,2.78010377]
[1739149935988,3.21349368,2630.6,2630.1,0.00569368]
[1739149936195,3.2078,2630.3,2630.1,0.00569368]
[1739149936392,1.1432,2630.2,2630.1,0.00569368]
[1739149936592,5.17570038,2630.2,2630.1,0.00569368]
[1739149940200,4.58990038,2630.2,2630.1,0.00569368]
[1739149940403,0.5574,2630.2,2630.1,0.00569368]
[1739149940593,2.40389368,2630.6,2630.1,2.78010377]
[1739149940594,3.77969368,2630.6,2630.1,2.78010377]
[1739149940904,0.57189368,2630.6,2630.1,2.78010377]
[1739149941100,0.57189368,2630.6,2630.2,3.2078]
[1739149941302,0.57189368,2630.6,2630.1,2.78010377]
[1739149942504,0.57189368,2630.6,2630.2,3.2078]
[1739149943303,0.00569368,2630.6,2630.4,2.77441009]
[1739149943607,0.00569368,2630.6,2630.5,3.7732]
[1739149943807,0.00569368,2630.6,2630.5,46.3962]
[1739149944007,3.2078,2631.9,2630.8,0.7601]
[1739149944207,1.823,2632.1,2631.5,2.77441009]
[1739149944410,4.94347748,2632.0,2631.5,2.77441009]
[1739149944607,0.5729,2632.0,2631.5,2.77441009]
[1739149944906,3.2078,2631.9,2631.5,2.77441009]
[1739149945101,3.2078,2631.9,2631.5,0.00569368]
[1739149945503,3.8038,2631.9,2631.5,0.00569368]
[1739149946206,3.2078,2631.6,2631.5,0.00569368]
[1739149946708,7.28862163,2631.6,2631.5,0.00569368]
[1739149947010,7.28862163,2631.6,2630.9,2.77441009]
[1739149947206,3.2078,2631.3,2630.6,5.98221009]
[1739149947505,4.08082163,2631.6,2630.9,2.77441009]
[1739149947506,3.2078,2631.6,2630.9,2.77441009]
[1739149947701,6.2295,2631.9,2630.9,2.77441009]
[1739149947905,3.2078,2631.3,2630.9,2.77441009]
[1739149948109,3.2078,2631.0,2630.4,3.2078]
[1739149948300,3.2078,2631.0,2630.8,0.00569368]
[1739149948998,3.2078,2631.6,2630.9,2.77441009]
[1739149949399,4.0846412,2631.5,2630.9,2.77441009]
[1739149950212,0.5576,2631.4,2630.9,2.77441009]
[1739149950609,0.5576,2631.4,2631.2,2.77441009]
[1739149951007,0.5605,2631.8,2631.2,2.77441009]
[1739149951212,1.1181,2631.8,2631.2,2.77441009]
[1739149951612,1.1181,2631.8,2631.2,5.98221009]
[1739149951911,1.1181,2631.8,2631.5,2.77441009]
[1739149952111,1.1181,2631.8,2631.2,5.98221009]
[1739149952307,3.2078,2631.6,2631.2,5.98221009]
[1739149952512,1.1181,2631.8,2631.2,5.98221009]
[1739149952714,3.2078,2632.2,2631.5,2.77441009]
[1739149952915,3.2078,2632.2,2631.8,2.77441009]
[1739149955715,0.5775,2632.4,2631.9,3.2078]
[1739149956323,0.5775,2632.4,2631.9,44.0078]
[1739149956816,3.2078,2632.7,2631.9,51.8228]
[1739149957018,3.2078,2632.7,2631.9,45.8228]
[1739149957317,0.5653,2632.6,2631.9,45.8228]
[1739149959223,0.5653,2632.6,2631.9,52.58259]
[1739149959618,0.5653,2632.6,2631.9,51.8228]
[1739149959922,0.5653,2632.6,2631.9,52.58259]
[1739149961328,0.5653,2632.6,2631.9,51.8228]
[1739149961622,0.5653,2632.6,2631.9,45.8228]
[1739149961814,0.5653,2632.6,2631.9,52.58259]
[1739149965226,0.5653,2632.6,2631.9,51.8228]
[1739149965526,0.5653,2632.6,2632.5,2.77441009]
[1739149966920,0.00569368,2632.8,2632.5,2.77441009]
[1739149969234,0.00569368,2632.8,2632.6,3.2078]
[1739149970326,0.00569368,2632.8,2632.6,3.96738]
[1739149970531,0.00569368,2632.8,2632.6,3.2078]
[1739149971324,0.00569368,2632.8,2632.5,2.77441009]
[1739149972025,0.00569368,2632.8,2632.5,5.98221009]
[1739149974435,0.00569368,2632.8,2632.5,2.77441009]
[1739149976132,0.00569368,2632.8,2632.5,5.98221009]
[1739149977231,0.00569368,2632.8,2632.5,2.77441009]
[1739149977733,0.00569368,2632.8,2632.5,2.38344592]
[1739149978231,0.00569368,2632.8,2632.3,0.00569368]
[1739149978437,0.00569368,2632.8,2632.5,2.38344592]
[1739149983537,0.00569368,2632.8,2632.6,3.2078]
[1739149984336,3.2078,2634.4,2633.3,0.75936]
[1739149984540,3.2078,2634.4,2634.3,2.38344592]
[1739149985247,0.5977,2634.5,2634.3,2.38344592]
[1739149985742,0.5977,2634.5,2634.1,3.21349368]
[1739149985743,0.00569368,2634.6,2634.4,5.97672411]
[1739149986247,4.04506859,2634.5,2634.1,0.00569368]
[1739149986541,3.2078,2634.3,2633.8,2.76892411]
[1739149986745,3.2078,2634.0,2633.8,2.76892411]
[1739149987037,4.39357755,2634.2,2633.8,2.76892411]
[1739149987238,4.97327755,2634.3,2633.3,1.798]
[1739149987437,4.39357755,2633.9,2633.4,2.76892411]
[1739149987742,3.2078,2633.8,2633.5,0.00569368]
[1739149987935,0.5797,2633.7,2633.5,0.00569368]
[1739149988246,4.60355771,2633.7,2633.5,0.00569368]
[1739149988961,4.60355771,2633.7,2632.8,2.76892411]
[1739149989141,3.2078,2633.4,2632.8,2.76892411]
[1739149989648,4.35229919,2633.3,2632.8,2.76892411]
[1739149990145,4.35229919,2633.3,2632.8,2.77461779]
[1739149990441,4.35229919,2633.3,2633.1,2.76892411]
[1739149990742,4.35229919,2633.3,2633.1,5.97672411]
[1739149991039,0.5768,2633.6,2633.1,2.76892411]
[1739149991746,3.2078,2633.4,2632.8,2.77461779]
[1739149992246,3.95763725,2633.3,2632.8,2.77461779]
[1739149992946,3.2078,2633.1,2632.8,0.00569368]
[1739149993334,4.83723671,2633.0,2632.8,0.00569368]
[1739149993540,0.5643,2632.9,2632.8,0.00569368]
[1739149993942,4.83723671,2633.0,2632.8,2.77461779]
[1739149994140,0.00569368,2633.2,2632.8,2.77461779]
[1739149994644,0.00569368,2633.2,2633.1,2.76892411]
[1739149995039,0.00569368,2633.2,2633.1,43.56892411]
[1739149996459,0.00569368,2633.2,2633.1,2.76892411]
[1739149998239,0.00569368,2633.2,2633.0,3.2078]
[1739149998940,0.00569368,2633.2,2633.1,2.76892411]
[1739149999147,0.00569368,2633.2,2632.8,3.36591779]
[1739149999347,0.00569368,2633.2,2633.1,2.76892411]
[1739150001245,0.00569368,2633.2,2632.9,3.2078]
[1739150002046,0.00569368,2633.2,2632.8,3.36591779]
[1739150005748,0.00569368,2633.2,2633.0,2.38250998]
[1739150006756,0.00569368,2633.2,2633.1,0.6013]
[1739150011857,0.00569368,2633.2,2633.1,3.74304]
[1739150012058,0.00569368,2633.2,2633.1,2.9836]
[1739150013058,0.00569368,2633.2,2633.1,3.74304]
[1739150013253,3.7725,2634.2,2633.1,9.74303]
[1739150013453,0.5846,2634.1,2633.8,2.38250998]
[1739150013653,3.2078,2633.9,2633.5,2.38250998]
[1739150014048,3.2078,2633.9,2633.4,3.2078]
[1739150014354,3.2078,2633.5,2633.2,2.38250998]
[1739150014659,0.5846,2633.4,2633.2,2.38250998]
[1739150014857,5.26621233,2633.4,2633.2,2.38250998]
[1739150017955,5.26621233,2633.4,2632.9,2.38250998]
[1739150018162,3.2078,2633.2,2632.8,0.00569368]
[1739150018559,4.09112118,2633.1,2632.8,0.00569368]
[1739150018753,4.09112118,2633.1,2632.9,2.38250998]
[1739150020266,3.2078,2633.2,2632.9,2.38250998]
[1739150020463,1.1366,2633.4,2632.9,2.38250998]
[1739150020669,4.39099492,2633.3,2632.9,2.38250998]
[1739150020862,1.1366,2633.4,2632.9,2.38250998]
[1739150021162,4.39099492,2633.3,2632.9,2.38250998]
[1739150021763,4.39099492,2633.3,2633.0,0.5567]
[1739150022769,3.96722,2633.2,2632.9,2.38250998]
[1739150023060,3.96722,2633.2,2632.8,0.00569368]
[1739150023061,0.75945,2633.1,2632.8,0.00569368]
[1739150023259,1.34938,2633.0,2632.8,0.00569368]
[1739150023561,1.34937,2633.0,2632.8,0.00569368]
[1739150023768,4.19301666,2632.9,2632.8,0.00569368]
[1739150024463,0.75955,2632.8,2632.0,5.59030998]
[1739150024662,3.2078,2632.5,2632.0,5.59030998]
[1739150025657,0.00569368,2632.5,2632.3,2.38250998]
[1739150028469,4.32900768,2632.4,2632.0,5.59600366]
[1739150028669,4.89720768,2632.4,2632.0,5.59600366]
[1739150029763,5.65685768,2632.4,2632.0,5.59600366]
[1739150029966,3.96753,2632.1,2632.0,0.00569368]
[1739150030163,3.96753,2632.1,2631.4,2.38250998]
[1739150030164,0.7598,2631.9,2631.4,2.38250998]
[1739150030365,3.2078,2631.8,2631.4,2.38250998]
[1739150030669,7.38133984,2631.8,2631.4,2.38250998]
[1739150031472,3.2078,2631.8,2631.4,2.38250998]
[1739150033473,3.2078,2631.5,2631.1,2.38250998]
[1739150033673,1.1602,2631.4,2631.1,2.38250998]
[1739150033871,5.54711112,2631.4,2631.1,2.38250998]
[1739150034775,1.1602,2631.4,2631.1,2.38250998]
[1739150035078,3.2078,2631.5,2631.1,2.38250998]
[1739150037273,0.76005,2631.0,2630.8,40.8]
[1739150037478,3.69484,2631.4,2629.9,3.2078]
[1739150037479,3.816,2630.9,2630.4,2.38250998]
[1739150037780,8.75505028,2630.9,2630.4,2.38250998]
[1739150037975,0.581,2630.8,2630.1,2.38250998]
[1739150038170,0.76026,2630.3,2630.1,2.38250998]
[1739150038374,3.2078,2630.3,2630.1,2.38250998]
[1739150038872,3.2078,2630.7,2630.1,2.38250998]
[1739150039071,3.96793,2630.7,2630.1,2.38250998]
[1739150039274,8.30989586,2630.7,2630.1,2.38250998]
[1739150039572,0.76018,2630.6,2630.1,2.38250998]
[1739150039974,7.54976586,2630.7,2630.1,2.38250998]
[1739150040378,0.76027,2630.3,2629.8,2.38250998]
[1739150040578,0.76025,2630.3,2629.8,2.38250998]
[1739150040777,1.1619,2630.2,2629.8,2.38250998]
[1739150040974,3.2078,2630.1,2629.5,2.38250998]
[1739150041175,1.1619,2630.2,2629.3,0.01342]
[1739150041176,3.2078,2629.8,2629.3,0.01342]
[1739150041383,3.2078,2629.4,2629.3,0.01342]
[1739150041676,7.26284703,2629.7,2629.3,0.01342]
[1739150041881,3.2078,2629.7,2629.3,0.01342]
[1739150042279,3.2078,2629.7,2629.3,0.59062]
[1739150042584,0.00569368,2629.8,2629.5,2.38250998]
[1739150043486,0.00569368,2629.8,2629.5,5.59030998]
[1739150043685,0.00569368,2629.8,2629.7,2.77895099]
[1739150045781,3.2078,2630.4,2629.7,8.77895099]
[1739150045982,3.7713,2631.1,2630.3,2.77895099]
[1739150046190,3.2078,2631.1,2630.6,2.77895099]
[1739150046686,3.2078,2631.1,2630.6,43.57895099]
[1739150046988,3.21350483,2631.1,2630.6,0.00570483]
[1739150049492,4.12362987,2631.0,2630.6,0.00570483]
[1739150051092,0.00570483,2631.1,2630.6,0.00570483]
[1739150051486,3.2078,2630.7,2630.6,0.00570483]
[1739150052393,4.355,2630.7,2630.6,0.00570483]
[1739150052993,3.21350483,2631.1,2630.6,0.00570483]
[1739150053195,3.21350483,2631.1,2630.6,2.78465582]
[1739150053196,0.00570483,2631.1,2630.6,2.78465582]
[1739150053402,0.00570483,2631.1,2630.7,0.584]
[1739150054296,4.29642654,2631.0,2630.6,0.00570483]
[1739150054993,3.2078,2630.8,2630.6,0.00570483]
[1739150056295,3.7927,2630.8,2630.6,0.00570483]
[1739150056489,0.5525,2630.7,2630.6,0.00570483]
[1739150057494,4.59391339,2630.7,2629.7,2.77895099]
[1739150057691,0.76019,2630.6,2629.7,3.95055099]
[1739150057894,0.7602,2630.5,2629.7,3.95055099]
[1739150058089,4.13974843,2630.5,2629.7,3.95055099]
[1739150058400,3.2078,2630.5,2629.7,3.95055099]
[1739150058900,4.20345579,2630.4,2629.7,3.95055099]
[1739150059799,4.96369579,2630.4,2629.7,3.95055099]
[1739150059999,4.96367579,2630.4,2629.7,3.95055099]
[1739150060197,3.2078,2630.2,2629.7,3.95055099]
[1739150060396,0.76032,2630.1,2629.5,3.2078]
[1739150060598,5.45314135,2630.1,2629.5,3.2078]
[1739150060802,5.45314135,2630.1,2629.3,1.1854]
[1739150060803,0.5706,2630.0,2629.3,1.1854]
[1739150061301,7.32052455,2629.9,2629.3,1.1854]
[1739150062000,7.32052455,2629.9,2629.4,2.77895099]
[1739150062200,3.2078,2629.9,2629.7,2.77895099]
[1739150062402,0.5641,2630.1,2629.7,2.77895099]
[1739150065001,3.2078,2630.4,2629.7,5.98675099]
[1739150065803,0.5512,2630.5,2630.0,2.77895099]
[1739150066707,0.5613,2630.7,2630.3,2.77895099]
[1739150067406,0.5613,2630.7,2630.1,1.1506]
[1739150067407,8.04285114,2630.6,2630.0,2.77895099]
[1739150068004,0.76019,2630.5,2630.0,2.77895099]
[1739150068306,7.28267114,2630.6,2630.0,2.77895099]
[1739150068499,8.04285114,2630.6,2630.0,2.77895099]
[1739150069506,7.28267114,2630.6,2630.0,2.77895099]
[1739150070005,8.04285114,2630.6,2630.0,2.77895099]
[1739150070306,7.28267114,2630.6,2630.0,2.77895099]
[1739150070505,8.04284114,2630.6,2630.0,2.77895099]
[1739150070707,7.28267114,2630.6,2630.0,2.77895099]
[1739150072005,4.07487114,2630.6,2630.0,2.77895099]
[1739150073105,0.5613,2630.7,2630.0,2.77895099]
[1739150073310,0.5613,2630.7,2630.2,3.2078]
[1739150073501,0.5613,2630.7,2630.3,3.38485099]
[1739150073706,0.5613,2630.7,2630.3,3.98415099]
[1739150073911,3.2078,2630.9,2630.3,3.98415099]
[1739150075605,3.2078,2630.9,2630.4,2.38710132]
[1739150076608,3.2078,2630.9,2630.7,2.38710132]
[1739150078013,0.60580483,2631.1,2630.7,2.38710132]
[1739150078211,0.00570483,2631.1,2630.7,2.38710132]
[1739150078911,0.00570483,2631.1,2630.8,3.2078]
[1739150079411,0.00570483,2631.1,2630.9,1.1946]
[1739150080910,0.00570483,2631.1,2631.0,2.38710132]
[1739150085922,0.00570483,2631.1,2631.0,3.14715132]
[1739150086218,0.00570483,2631.1,2631.0,2.38710132]
[1739150086413,0.00570483,2631.1,2631.0,8.38710132]
[1739150086621,0.5628,2632.1,2631.1,0.76001]
[1739150086818,0.5628,2632.1,2631.7,2.38710132]
[1739150089522,0.5628,2632.1,2631.6,0.00570483]
[1739150089523,3.2078,2632.0,2631.6,0.00570483]
[1739150089723,0.75992,2631.5,2630.8,2.38710132]
[1739150089926,3.2078,2631.2,2630.8,2.38710132]
[1739150090220,1.1728,2631.4,2630.8,2.38710132]
[1739150091025,0.5943,2631.3,2630.8,2.38710132]
[1739150091216,5.48413559,2631.3,2630.8,2.38710132]
[1739150091421,4.72415559,2631.3,2630.6,3.2078]
[1739150095034,3.2078,2631.2,2630.6,3.2078]
[1739150096830,1.1728,2631.4,2630.8,2.38710132]
[1739150097032,1.1728,2631.4,2630.9,1.1491]
[1739150097431,1.1728,2631.4,2631.0,40.8]
[1739150097735,1.1728,2631.4,2630.9,4.3569]
[1739150098126,1.1728,2631.4,2630.9,45.1569]
[1739150099132,1.1728,2631.4,2630.9,3.2078]
[1739150099334,5.02544618,2631.3,2630.6,3.2078]
[1739150099637,4.26547618,2631.3,2630.6,44.0078]
[1739150100132,1.7268,2631.4,2630.6,3.2078]
[1739150100335,0.76002,2631.1,2630.6,3.2078]
[1739150100637,3.2078,2631.2,2630.6,3.2078]
[1739150101136,0.76003,2631.1,2630.6,3.2078]
[1739150101731,3.5883,2631.2,2630.6,3.2078]
[1739150102327,4.34831,2631.2,2630.6,3.2078]
[1739150102536,4.3483,2631.2,2630.6,3.2078]
[1739150103433,3.5883,2631.2,2630.6,3.2078]
[1739150103737,4.3483,2631.2,2630.6,3.2078]
[1739150103942,3.2078,2631.2,2630.6,3.2078]
[1739150104439,3.9678,2631.2,2630.6,3.2078]
[1739150104936,3.2078,2631.2,2630.6,3.2078]
[1739150105337,0.3805,2631.3,2630.6,3.2078]
[1739150105743,1.14048,2631.3,2630.6,3.2078]
[1739150105942,1.14047,2631.3,2630.6,3.2078]
[1739150106545,0.3805,2631.3,2630.6,3.2078]
[1739150106837,8.34523375,2631.2,2630.6,3.2078]
[1739150107036,8.34523375,2631.2,2630.5,43.18710132]
[1739150107037,3.2078,2631.0,2630.5,2.38710132]
[1739150107237,0.76017,2630.6,2630.1,0.5939]
[1739150107442,1.1563,2630.5,2630.1,0.5939]
[1739150108342,0.00570483,2630.6,2630.3,3.2078]
[1739150108844,0.00570483,2630.6,2630.5,2.38710132]
[1739150116158,0.00570483,2630.6,2630.3,3.2078]
[1739150117657,0.00570483,2630.6,2630.5,2.38710132]
[1739150118257,0.00570483,2630.6,2630.5,2.98830132]
[1739150121555,2.1755,2631.6,2630.5,2.98830132]
[1739150121556,3.2078,2631.5,2630.5,2.98830132]
[1739150121748,3.2078,2631.5,2631.0,2.38710132]
[1739150121749,4.3816,2631.5,2631.0,2.38710132]
[1739150122058,9.15332704,2631.5,2631.0,2.38710132]
[1739150122254,9.15332704,2631.5,2630.7,43.18710132]
[1739150122753,0.00570483,2631.4,2630.8,0.00570483]
[1739150123260,4.32236987,2631.3,2630.8,0.00570483]
[1739150123659,0.00570483,2631.4,2631.2,3.2078]
[1739150123966,1.1439,2632.1,2631.3,3.56930132]
[1739150124260,1.1439,2632.1,2631.7,2.38710132]
[1739150125461,1.1439,2632.1,2631.8,0.5841]
[1739150127367,0.00570483,2632.2,2632.0,2.38710132]
[1739150129158,0.00570483,2632.2,2632.1,3.2078]
[1739150129357,4.3723,2633.1,2632.1,5.59490132]
[1739150129565,4.3723,2633.1,2632.6,2.38710132]
[1739150130260,3.2078,2632.8,2632.0,2.38710132]
[1739150130455,3.2078,2632.5,2632.0,2.38710132]
[1739150130656,1.1888,2632.4,2632.1,0.00570483]
[1739150132263,4.3966,2632.4,2632.1,0.00570483]
[1739150133965,5.15627,2632.4,2632.1,0.00570483]
[1739150134171,4.36274402,2632.3,2631.4,5.59490132]
[1739150134360,4.36274402,2632.3,2631.4,2.38710132]
[1739150134361,0.7598,2631.9,2631.4,2.38710132]
[1739150134675,3.2078,2631.6,2630.8,2.38710132]
[1739150135169,3.49886112,2631.5,2630.8,2.38710132]
[1739150135370,3.50456595,2631.5,2630.9,0.00570483]
[1739150135964,3.2078,2631.2,2630.9,0.00570483]
[1739150136169,0.6104,2631.1,2630.9,0.00570483]
[1739150136472,5.44548111,2631.1,2630.9,0.00570483]
[1739150137264,0.6001,2631.0,2630.5,3.2078]
[1739150137460,3.2078,2630.9,2630.5,3.2078]
[1739150137664,7.50741795,2630.9,2630.5,3.2078]
[1739150138572,8.26749795,2630.9,2630.5,3.2078]
[1739150138773,7.50741795,2630.9,2630.5,3.2078]
[1739150138975,2.3941,2631.0,2630.5,3.2078]
[1739150139169,3.2078,2630.9,2630.5,3.2078]
[1739150139471,3.2078,2630.9,2630.4,0.00570483]
[1739150139472,3.2078,2630.6,2630.4,0.00570483]
[1739150139867,4.33680281,2630.5,2630.4,0.00570483]
[1739150140069,5.09699281,2630.5,2630.4,0.00570483]
[1739150140575,5.09699281,2630.5,2629.8,3.2078]
[1739150140871,3.2078,2630.3,2629.8,3.2078]
[1739150141269,4.18063926,2630.2,2629.8,3.2078]